[Event "Ceske Budejovice GM 2022"]
[Site "Ceske Budejovice"]
[Date "2022.07.04"]
[Round "4.5"]
[White "Kraus, Tomas"]
[Black "Gazik, Viktor"]
[Result "1-0"]
[ECO "B22"]
[WhiteElo "2488"]
[BlackElo "2544"]
[Annotator "TA"]
[PlyCount "63"]
[EventDate "2022.07.01"]
[EventType "tourn"]
[EventCountry "CZE"]
[SourceTitle "playchess.com"]
[Source "ChessBase"]
[SourceQuality "1"]
[TimeControl "40/5400+30:1800+30"]

{[%evp 19,63,0,0,0,5,0,29,32,41,35,49,26,31,22,29,32,102,71,1075,1068,1031,1074,1059,1045,1012,622,764,751,941,516,910,500,29961,29963,29959,29956,6460,6249,5635,5603,5623,1006,5352,5343,29984,341]} 1. e4 {[%emt 0:00:16]} c5 {[%emt 0:00:15]} 2. c3 {[%emt 0:00:48]} Nf6 {[%emt 0:01:24]} 3. e5 {[%emt 0:00:05]} Nd5 {[%emt 0:00:04]} 4. Nf3 {[%emt 0:01:16]} Nc6 {[%emt 0:02:04]} 5. d4 {[%emt 0:01:27]} cxd4 {[%emt 0:00:47]} 6. cxd4 {[%emt 0:00:06]} d6 {[%emt 0:06:15]} 7. Bc4 {[%emt 0:00:17]} e6 {[%emt 0:07:37]} 8. O-O {[%emt 0:01:07]} Be7 {[%emt 0:01:55]} 9. Qe2 {[%emt 0:01:10]} O-O {[%emt 0:05:36]} 10. Qe4 {[%emt 0:01:28] 10.Rd1 is the modern continuation.} Bd7 {[%emt 0:06:21]} 11. Bb3 {[%emt 0:01:27] B22: Sicilian: 2 c3.} Rc8 {[%emt 0:02:06]} 12. Nc3 {[%emt 0:02:39]} dxe5 {[%emt 0:15:34]} 13. dxe5 {[%emt 0:06:57] White has an edge.} Nxc3 {[%emt 0:06:07]} 14. bxc3 {[%emt 0:00:30]} Qa5 {[%emt 0:00:12] [#]} 15. Bd2 $146 {[%emt 0:14:22]} ({Predecessor:} 15. Bc2 g6 16. Bh6 Rfd8 17. Qf4 Qxc3 18. Rac1 Qb4 19. Be4 Nd4 20. Nxd4 Qxd4 21. Bxb7 Qxf4 22. Bxf4 Rxc1 23. Rxc1 {1-0 (57) Kislinsky,A (2463)-Pichot,A (2630) Chess.com INT 2021}) 15... Rfd8 {[%emt 0:01:00]} 16. h4 {[%emt 0:00:50]} Be8 $1 {[%emt 0:09:18][%cal Oc6e5]} 17. Rad1 {[%emt 0:02:09]} ({Much weaker is} 17. Bc2 g6 18. Rfd1 Qd5 $11) 17... Bf8 {[%emt 0:02:51]} (17... Qc7 $14) 18. h5 $40 {[%emt 0:09:17][%mdl 128] [#] Black must now prevent Ng5. White is out for blood. White is more active.} Qc5 $2 {[%emt 0:07:04][%mdl 8192] A mistake that costs the game.} (18... Be7 $16) 19. Ng5 $18 {[%emt 0:07:10][%csl Gg5][%cal Re4h7]} g6 {[%emt 0:00:15]} 20. hxg6 {[%emt 0:00:47]} hxg6 {[%emt 0:00:05]} 21. Qh4 {[%emt 0:13:25][%csl Gg5][%cal Rh4h7]} Bg7 {[%emt 0:00:26] [#]} 22. Bxe6 $1 {[%emt 0:09:27][%mdl 512]} Ra8 {[%emt 0:00:19]} (22... Nxe5 23. Qh7+) 23. Bb3 {[%emt 0:07:15] aiming for e6.} Nxe5 {[%emt 0:07:15]} 24. Qh7+ {[%emt 0:01:33]} Kf8 {[%emt 0:00:03]} 25. Ne4 {[%emt 0:00:47] Bh6 would kill now.} Qc7 {[%emt 0:02:48]} (25... Nf3+ $18 26. gxf3 Qh5 27. Qxh5 gxh5) 26. Bh6 {[%emt 0:01:23]} Bxh6 {[%emt 0:00:04]} 27. Qxh6+ {[%emt 0:00:30]} Ke7 {[%emt 0:00:05]} 28. Qh4+ {[%emt 0:02:29]} Kf8 {[%emt 0:00:04]} 29. Qh8+ {[%emt 0:00:51]} Ke7 {[%emt 0:00:04]} 30. Qf6+ {[%emt 0:02:14]} Kf8 {[%emt 0:00:03]} 31. Nd6 {[%emt 0:03:56] White wants to mate with Qh8+.} Qxc3 {[%emt 0:01:51]} 32. Rfe1 $2 {[%emt 0:00:57] Weighted Error Value: White=1.13/Black=1.00} (32. Qh8+ {mates} Ke7 33. Rfe1 Rxd6 34. Rxe5+ Qxe5 35. Qxe5+ Re6 36. Bxe6 fxe6 37. Qc7+ Kf6 38. Qxb7) 1-0

[Event "Ceske Budejovice GM 2022"]
[Site "Ceske Budejovice"]
[Date "2022.07.05"]
[Round "5.1"]
[White "Gazik, Viktor"]
[Black "Sahidi, Samir"]
[Result "1-0"]
[ECO "B10"]
[WhiteElo "2544"]
[BlackElo "2462"]
[Annotator "TA"]
[PlyCount "85"]
[EventDate "2022.07.01"]
[EventType "tourn"]
[EventCountry "CZE"]
[SourceTitle "playchess.com"]
[Source "ChessBase"]
[SourceQuality "1"]
[TimeControl "40/5400+30:1800+30"]

{[%evp 9,85,3,26,28,21,18,25,25,37,41,56,41,68,44,67,47,167,142,154,166,197,191,261,265,252,162,167,153,169,112,132,108,322,327,313,319,327,321,340,319,327,321,321,328,827,844,1685,290,300,302,296,306,341,290,354,346,351,351,369,374,486,472,496,494,502,495,501,496,524,521,718,691,872,872,1323,1299,1050,979]} 1. e4 {[%emt 0:00:03]} c6 {[%emt 0:00:42]} 2. Nf3 {[%emt 0:00:28]} d5 {[%emt 0:00:06]} 3. d3 {[%emt 0:00:03]} Bg4 {[%emt 0:01:36]} 4. h3 {[%emt 0:00:26]} Bh5 {[%emt 0:01:31]} 5. Nc3 {[%emt 0:00:57]} e6 {[%emt 0:06:46]} 6. g4 {[%emt 0:00:33] B11: Caro-Kann: Two Knights Variation.} Bg6 {[%emt 0:01:24]} 7. h4 {[%emt 0:00:15] [#] Black must now prevent h5.} h6 {[%emt 0:02:28]} 8. Bd2 {[%emt 0:14:12] [#] White has an edge.} dxe4 $146 {[%emt 0:10:40]} ({Predecessor:} 8... Nd7 9. exd5 cxd5 10. Qe2 h5 11. g5 Ne7 12. O-O-O Qb6 13. Qe3 Qxe3 14. fxe3 Nc6 {½-½ (62) Makovsky,P (2476)-Gburek,J (2467) ICCF email 2013}) 9. Ne5 {[%emt 0:16:42]} Bh7 {[%emt 0:04:50]} 10. dxe4 {[%emt 0:00:06]} ({Not} 10. Nxe4 Bxe4 11. dxe4 Qd4 $17) 10... Nf6 {[%emt 0:01:42]} 11. Qe2 {[%emt 0:22:01]} (11. Bg2 {with more complications.} Qd4 12. Nxf7 Kxf7 13. g5) 11... Nbd7 {[%emt 0:01:42]} 12. Nd3 {[%emt 0:03:37] Strongly threatening g5. White is more active.} (12. Nxf7 {looks sharper.} Kxf7 13. g5 b5 14. gxf6 Qxf6 15. Rh3) 12... Qc7 {[%emt 0:08:36]} (12... Nb6 $14) 13. g5 $18 {[%emt 0:01:32]} Ng8 {[%emt 0:00:05]} 14. O-O-O {[%emt 0:01:09]} O-O-O {[%emt 0:01:24] [#]} 15. Qf3 $1 {[%emt 0:14:43]} Nc5 {[%emt 0:01:02]} (15... hxg5 {is a better defense.} 16. hxg5 (16. Qxf7 Ngf6 $14) 16... Bd6) 16. Bf4 {[%emt 0:00:37]} Nxd3+ {[%emt 0:01:26]} 17. Rxd3 {[%emt 0:05:54]} Rxd3 {[%emt 0:00:28]} 18. Bxd3 {[%emt 0:00:01]} ({Don't play} 18. cxd3 e5 19. Be3 Kb8 $16) 18... e5 {[%emt 0:00:54]} 19. Bg3 {[%emt 0:06:35]} ({White should play} 19. Be3 $18) 19... Bd6 $16 {[%emt 0:01:33]} 20. Bc4 $36 {[%emt 0:00:25][%mdl 2048] White is on the roll.} Ne7 $2 {[%emt 0:00:47] A mistake that costs the game.} (20... Qe7 $16) 21. Qxf7 $18 {[%emt 0:00:47]} Ng6 {[%emt 0:00:51]} 22. Qe6+ {[%emt 0:02:43]} Qd7 {[%emt 0:03:41]} 23. gxh6 {[%emt 0:00:02]} gxh6 {[%emt 0:01:43]} 24. h5 {[%emt 0:00:02]} Nf4 {[%emt 0:01:02]} 25. Qxh6 {[%emt 0:03:05]} Bf8 {[%emt 0:02:56]} 26. Qg5 {[%emt 0:00:03]} Qg7 {[%emt 0:00:43]} (26... Qe7 27. Bxf4 exf4 28. Qxf4 Bg7) 27. Bxf4 {[%emt 0:01:44] Hoping for Be6+.} exf4 {[%emt 0:00:06]} 28. Qxf4 $2 {[%emt 0:00:21]} (28. Be6+ Kc7 29. Qa5+ Kd6 30. Bh3) 28... Qh6 {[%emt 0:01:01]} 29. Qxh6 {[%emt 0:00:04]} Bxh6+ {[%emt 0:00:05]} 30. Kd1 {[%emt 0:01:19]} Kd7 {[%emt 0:01:38]} 31. Ke2 {[%emt 0:00:32]} Ke7 {[%emt 0:01:41]} 32. f3 {[%emt 0:00:14]} b5 {[%emt 0:00:37]} 33. Bb3 {[%emt 0:01:27]} a5 {[%emt 0:00:45]} 34. a4 {[%emt 0:00:09]} b4 {[%emt 0:00:24]} 35. Nd1 {[%emt 0:00:31] White is clearly winning.} Bg7 {[%emt 0:01:51]} 36. Ne3 {[%emt 0:00:47]} Bxb2 {[%emt 0:04:14]} 37. Nc4 {[%emt 0:00:02][%csl LRa5,LRb2]} Bc3 {[%emt 0:00:16]} 38. Nxa5 {[%emt 0:00:01]} Kd6 {[%emt 0:00:29]} 39. Rg1 {[%emt 0:03:08]} Rf8 {[%emt 0:03:19]} 40. Nc4+ {[%emt 0:00:20]} Kc7 {[%emt 0:00:35]} 41. e5 {[%emt 0:02:51] Threatens to win with Rg7+.} Bg8 {[%emt 0:07:28]} 42. Rg7+ {[%emt 0:00:06]} Kd8 {[%emt 0:05:19]} 43. Na5 {[%emt 0:00:12][%csl LRc6,LRg8] Weighted Error Value: White=0.24 (precise) /Black=0.35} 1-0

[Event "Ceske Budejovice GM 2022"]
[Site "Ceske Budejovice"]
[Date "2022.07.05"]
[Round "5.2"]
[White "Morgunov, Marc"]
[Black "Kraus, Tomas"]
[Result "1/2-1/2"]
[ECO "B11"]
[WhiteElo "2376"]
[BlackElo "2488"]
[Annotator "TA"]
[PlyCount "30"]
[EventDate "2022.07.01"]
[EventType "tourn"]
[EventCountry "CZE"]
[SourceTitle "playchess.com"]
[Source "ChessBase"]
[SourceQuality "1"]
[TimeControl "40/5400+30:1800+30"]

{[%evp 10,30,18,8,29,21,28,20,16,4,2,14,7,7,10,0,10,19,25,18,6,24,28]} 1. e4 {[%emt 0:00:07]} c6 {[%emt 0:00:44]} 2. Nc3 {[%emt 0:00:40]} d5 {[%emt 0:00:19]} 3. Nf3 {[%emt 0:00:15]} Bg4 {[%emt 0:00:59]} 4. h3 {[%emt 0:00:18]} Bxf3 {[%emt 0:00:05]} 5. Qxf3 {[%emt 0:00:04]} e6 {[%emt 0:00:42]} 6. Be2 {[%emt 0:00:38][%cal Bf1e2,Be2d1,Bd1b3][%mdl 32]} Bc5 {[%emt 0:01:53][%cal Bf8c5,Bc5d4,Bd4e5][%mdl 32] B11: Caro-Kann: Two Knights Variation.} 7. O-O {[%emt 0:02:33]} Nd7 {[%emt 0:00:39]} 8. Qg3 {[%emt 0:05:25]} Bd4 {[%emt 0:00:54] The position is equal.} (8... Ngf6 {seems wilder.} 9. d3 O-O 10. Bf4 Ne8) 9. exd5 {[%emt 0:02:56]} exd5 {[%emt 0:01:01]} 10. Bd1 {[%emt 0:00:18]} Ne7 {[%emt 0:02:14]} 11. Ne2 {[%emt 0:02:46]} Be5 {[%emt 0:00:41]} 12. Qf3 {[%emt 0:03:45]} d4 {[%emt 0:14:09] [#]} 13. c3 $146 {[%emt 0:05:17]} ({Predecessor:} 13. d3 O-O 14. Bf4 Bf6 15. Ng3 Nd5 16. Ne4 Be5 17. Bxe5 Nxe5 18. Qg3 Qc7 19. c3 dxc3 20. bxc3 {1-0 (34) Karacsonyi,G (2340)-Sturt,R (2500) Belgrade 2021}) 13... Nc5 {[%emt 0:10:09]} 14. b4 {[%emt 0:15:14]} Ne6 {[%emt 0:02:17]} 15. Bb3 {[%emt 0:03:15]} O-O {[%emt 0:10:48] A rather calm draw.  Weighted Error Value: White=0.03 (flawless) /Black=0.06 (flawless)} 1/2-1/2

[Event "Ceske Budejovice GM 2022"]
[Site "Ceske Budejovice"]
[Date "2022.07.05"]
[Round "5.3"]
[White "Vykouk, Jan"]
[Black "Omelja, Artem"]
[Result "0-1"]
[ECO "C50"]
[WhiteElo "2476"]
[BlackElo "2478"]
[Annotator "TA"]
[PlyCount "64"]
[EventDate "2022.07.01"]
[EventType "tourn"]
[EventCountry "CZE"]
[SourceTitle "playchess.com"]
[Source "ChessBase"]
[SourceQuality "1"]
[TimeControl "40/5400+30:1800+30"]

{[%evp 11,64,9,14,14,32,16,20,0,0,0,0,0,4,0,0,-16,0,-11,-22,-18,-8,-8,0,-34,-41,-80,-64,-108,-107,-100,-94,-138,-131,-158,-158,-179,-185,-363,-354,-388,-377,-434,-414,-534,-544,-545,-550,-725,-722,-728,-654,-724,-720,-1058,-1010]} 1. e4 {[%emt 0:00:03]} e5 {[%emt 0:01:38]} 2. Nf3 {[%emt 0:00:05]} Nc6 {[%emt 0:00:05]} 3. Bc4 {[%emt 0:00:04]} Bc5 {[%emt 0:00:28]} 4. O-O {[%emt 0:00:08]} Nf6 {[%emt 0:00:27]} 5. d3 {[%emt 0:00:05]} d6 {[%emt 0:01:41]} 6. c3 {[%emt 0:00:07]} a6 {[%emt 0:00:30]} 7. a4 {[%emt 0:05:31] C54: Giuoco Piano: 4 c3 Nf6, main lines with 5 d4 and 5 d3.} Ba7 {[%emt 0:00:13]} 8. Re1 {[%emt 0:00:29]} h6 {[%emt 0:00:40]} 9. Be3 {[%emt 0:02:52] The position is equal.} Bxe3 {[%emt 0:00:30] [#]} 10. fxe3 $146 {[%emt 0:00:06]} ({Predecessor:} 10. Rxe3 O-O 11. Re1 a5 12. Nbd2 Re8 13. Qb3 Qe7 14. Nf1 Rb8 15. Ne3 Be6 16. h3 Bxc4 17. Nxc4 {0-1 (44) Ganguly,S (2635)-Yilmaz,M (2630) chess24.com INT 2020}) 10... O-O {[%emt 0:01:05]} 11. Nbd2 {[%emt 0:00:06]} Ne7 {[%emt 0:05:24]} 12. d4 {[%emt 0:04:05]} Ng6 {[%emt 0:00:33]} 13. Bd3 {[%emt 0:01:16]} a5 {[%emt 0:04:29]} 14. b4 {[%emt 0:01:24]} b6 {[%emt 0:02:31]} 15. bxa5 {[%emt 0:02:07]} bxa5 {[%emt 0:04:06]} 16. Bb5 {[%emt 0:01:52]} Bb7 {[%emt 0:03:34]} 17. d5 {[%emt 0:02:14]} Ne7 {[%emt 0:05:57]} 18. Rb1 {[%emt 0:06:09]} c6 {[%emt 0:04:46]} 19. Be2 {[%emt 0:05:40]} Qc7 {[%emt 0:02:50]} 20. c4 {[%emt 0:00:06][%cal Oc4c5]} Nd7 {[%emt 0:05:14][%cal Bf6d7,Bd7c5,Bc5e4,Be4c3][%mdl 32]} 21. Rf1 {[%emt 0:01:16]} Nc5 {[%emt 0:01:29]} 22. g4 {[%emt 0:14:18] [#] Against f5} Bc8 $1 {[%emt 0:04:11]} 23. Nh4 {[%emt 0:03:46]} Bd7 {[%emt 0:01:30]} 24. Nb3 $2 {[%emt 0:13:06]} (24. Nf5 {might work better.} Nxf5 25. exf5) 24... Nxe4 $19 {[%emt 0:03:26] White must now prevent ...Nc3.} 25. Qd3 {[%emt 0:00:19]} cxd5 {[%emt 0:01:02]} 26. Rfc1 {[%emt 0:05:14]} Rfc8 {[%emt 0:02:20] Threatens to win with ...Rab8.} 27. cxd5 {[%emt 0:02:44]} Nc3 {[%emt 0:00:11] Black is clearly winning.} 28. Bf3 {[%emt 0:00:05]} Rab8 {[%emt 0:01:48]} 29. Kh1 {[%emt 0:04:13]} Bxa4 {[%emt 0:01:31]} 30. Nd2 {[%emt 0:01:24]} Bb5 {[%emt 0:01:14]} 31. Rxb5 {[%emt 0:05:30]} Rxb5 {[%emt 0:01:06]} 32. Ne4 {[%emt 0:00:56] [#]} Nxe4 $1 {[%emt 0:01:12] Weighted Error Value: White=0.47/Black=0.02 (flawless)} 0-1

[Event "Ceske Budejovice GM 2022"]
[Site "Ceske Budejovice"]
[Date "2022.07.05"]
[Round "5.4"]
[White "Hollan, Martin"]
[Black "Stefansson, Hannes"]
[Result "1/2-1/2"]
[ECO "D02"]
[WhiteElo "2399"]
[BlackElo "2541"]
[Annotator "TA"]
[PlyCount "133"]
[EventDate "2022.07.01"]
[EventType "tourn"]
[EventCountry "CZE"]
[SourceTitle "playchess.com"]
[Source "ChessBase"]
[SourceQuality "1"]
[TimeControl "40/5400+30:1800+30"]

{[%evp 12,133,9,11,41,24,29,31,31,32,37,39,36,37,45,6,64,33,34,38,86,73,72,48,59,60,62,56,91,91,99,66,47,20,20,20,80,0,0,0,0,-20,-23,-25,-18,-18,-51,-51,-15,-30,-22,-86,-51,-109,-81,-110,-20,-83,0,-97,-90,-136,-136,-137,-72,-170,-116,-115,-114,-114,-106,-114,-107,-109,-114,-178,-120,-258,-78,-31,-31,-31,-31,-247,-8,-172,0,-271,0,0,0,-18,0,-37,0,0,0,0,0,0,0,0,0,0,0,0,0,0,0,0,0,0,0,0,0,0,0,0,0,0,0,0,0,0]} 1. d4 {[%emt 0:00:02]} d5 {[%emt 0:00:14]} 2. Nf3 {[%emt 0:00:46]} Nf6 {[%emt 0:00:19]} 3. c4 {[%emt 0:00:08]} c6 {[%emt 0:00:40]} 4. Qc2 {[%emt 0:00:20]} dxc4 {[%emt 0:00:50]} 5. Qxc4 {[%emt 0:00:10]} Bf5 {[%emt 0:01:02]} 6. Nc3 {[%emt 0:00:49]} e6 {[%emt 0:01:19]} 7. g3 {[%emt 0:08:57]} b5 {[%emt 0:02:28] D23: Queen's Gambit Accepted: 3 Nf3 Nf6 sidelines.} 8. Qb3 {[%emt 0:00:12]} b4 {[%emt 0:00:16]} 9. Na4 {[%emt 0:03:30]} Be4 {[%emt 0:03:40] White is slightly better.} 10. Bg2 {[%emt 0:00:49]} Nbd7 {[%emt 0:04:56]} 11. O-O {[%emt 0:00:58]} Be7 {[%emt 0:00:44]} 12. Bg5 {[%emt 0:11:31]} O-O {[%emt 0:03:36]} 13. Rac1 {[%emt 0:01:52][%cal Ba1c1,Bc1c5,Bc5c4][%mdl 32]} Rc8 {[%emt 0:00:43]} (13... Qa5 $11) 14. Bxf6 {[%emt 0:06:02] [#]} (14. Ne5 $5 {[%cal Re5d7]}) 14... Nxf6 $146 {[%emt 0:02:55]} ({Predecessor:} 14... gxf6 15. Rfd1 Qa5 16. Nd2 Bd5 17. Nc4 Qa6 18. e4 Bxc4 19. Rxc4 Nb6 20. Nxb6 axb6 {1-0 (102) Arancibia Guzman,E (2401)-Egger Mancilla,J (2424) Santiago de Chile 2008}) 15. Nc5 {[%emt 0:05:20]} Bxf3 {[%emt 0:03:53]} (15... Bxc5 $14 16. Rxc5 Nd7) 16. Bxf3 $16 {[%emt 0:00:11]} Bxc5 {[%emt 0:04:18]} 17. Rxc5 {[%emt 0:00:24]} Qxd4 {[%emt 0:00:39]} 18. Rc4 {[%emt 0:01:34]} (18. Rxc6 Rxc6 19. Bxc6 g6 $11) 18... Qe5 {[%emt 0:02:18]} 19. Rxb4 {[%emt 0:09:48]} Rb8 {[%emt 0:04:48]} 20. Rc1 $1 {[%emt 0:08:03]} a5 {[%emt 0:01:48]} 21. Rb7 {[%emt 0:07:41]} g5 {[%emt 0:02:09][%cal Oa5a4]} 22. Bxc6 {[%emt 0:09:59]} (22. Rxc6 Rxb7 23. Qxb7 g4 $11) 22... Rxb7 {[%emt 0:01:51]} 23. Bxb7 {[%emt 0:00:07]} Qxe2 {[%emt 0:00:13]} (23... Rb8 $1 $11) 24. Rc5 {[%emt 0:03:04]} (24. Qc3 $1 $16 {[%cal Rc3f6]} Ng4 25. Rc2 Qd1+ 26. Kg2) 24... h6 $11 {[%emt 0:02:41]} 25. Qc3 {[%emt 0:06:16]} Ng4 $40 {[%emt 0:02:18][%mdl 128] Black has some attack.} 26. Qf3 {[%emt 0:01:20]} Qxb2 {[%emt 0:00:55][%cal Og4f2] Threatens to win with ...Nxf2!} 27. Qxg4 {[%emt 0:08:13]} Qb1+ {[%emt 0:00:25]} 28. Kg2 {[%emt 0:00:10]} Qxb7+ {[%emt 0:00:06][%mdl 4096] Endgame KQR-KQR} 29. Qf3 {[%emt 0:04:10]} Qb4 {[%emt 0:00:24]} (29... Qa7 $5 {[%cal Ra7c5]} 30. Rc1 Qd7 $15) 30. Qe3 {[%emt 0:01:22][%cal Oh2h4]} Rb8 {[%emt 0:02:12]} 31. h3 {[%emt 0:01:36]} (31. a4 $11) 31... a4 {[%emt 0:02:38]} 32. Rc7 {[%emt 0:00:29]} (32. h4 $15) 32... Qd6 {[%emt 0:04:16]} 33. Rc4 {[%emt 0:00:19]} a3 {[%emt 0:01:41]} (33... Rb4 $17 34. Rxb4 Qxb4) 34. Rc3 {[%emt 0:00:33]} (34. Rc5 $1 $11) 34... Rb1 {[%emt 0:01:40]} (34... Rb2 $17 35. Rxa3 Rxa2 $1 36. Rxa2 Qd5+ 37. Kf1 Qxa2) 35. Rc8+ {[%emt 0:00:13]} (35. Qd3 $11 {remains equal.} Qb4 36. Qd8+ Kg7 37. Rf3) 35... Kg7 $17 {[%emt 0:00:07]} 36. Qc3+ {[%emt 0:00:07]} (36. Rc3 $142) 36... e5 $1 {[%emt 0:00:23]} 37. Qc5 {[%emt 0:01:21] Prevents Qd5+.} Rd1 {[%emt 0:07:05]} (37... Qxc5 $142 38. Rxc5 Rb2) 38. Rc6 {[%emt 0:00:31]} (38. Qxd6 $17 Rxd6 39. Rc3) 38... Qd4 $19 {[%emt 0:03:35]} 39. Qxd4 {[%emt 0:00:08]} exd4 $17 {[%emt 0:00:05] KR-KR} ({Stronger than} 39... Rxd4 40. Rc3 $15) 40. Ra6 {[%emt 0:00:24] [#]} Rd3 $1 {[%emt 0:00:13]} 41. h4 {[%emt 0:17:13]} Rc3 {[%emt 0:08:33]} 42. hxg5 {[%emt 0:01:35]} hxg5 {[%emt 0:00:06] Strongly threatening ...g4.} 43. Rd6 {[%emt 0:04:07]} (43. g4 $17) 43... d3 {[%emt 0:00:36]} (43... Rc2 $19 {aiming for ...g4.} 44. Rxd4 Kf6) 44. Kf3 {[%emt 0:06:12] [#]} (44. g4 $17 {was the only defense.}) 44... Rc2 $2 {[%emt 0:03:42]} (44... f5 $1 $19 {and Black stays clearly on top. Hoping for ...Kf7.} 45. Ra6 Kf7) 45. Rxd3 {[%emt 0:00:16]} Rxa2 {[%emt 0:00:04]} 46. g4 $1 {[%emt 0:01:50]} Ra1 {[%emt 0:00:23]} 47. Rd5 {[%emt 0:02:17]} f6 $2 {[%emt 0:01:19]} (47... Kf6 $19 48. Rf5+ Kg6) 48. Ra5 $2 {[%emt 0:00:19]} (48. Rd7+ $11 {and White has nothing to worry.} Kf8 49. Ra7) 48... Kf7 $2 {[%emt 0:00:10]} (48... a2 $19 {White must now prevent ...Kg8.} 49. Ra7+ Kg8) 49. Ra6 $2 {[%emt 0:00:33][%mdl 8192]} (49. Ra7+ $11 Kg6 50. Ra6) 49... Ke7 $2 {[%emt 0:00:06]} ({Better is} 49... a2 $19 {And now ...Ke7 would win.} 50. Ke2 Ke8) 50. Ke4 $11 {[%emt 0:00:41]} Ra2 {[%emt 0:02:36]} 51. Ke3 {[%emt 0:00:47]} Kd7 {[%emt 0:00:34]} 52. Rxf6 {[%emt 0:00:27]} Kc7 {[%emt 0:00:04]} 53. Ra6 {[%emt 0:00:33] The position is equal.} Kb7 {[%emt 0:00:05]} 54. Ra4 {[%emt 0:00:13]} (54. Ra5 Kb6 55. Ra8 (55. Rxg5 Rb2 $17) 55... Ra1) 54... Kb6 {[%emt 0:00:10]} 55. f4 {[%emt 0:00:37][%cal Bf2f4,Bf4g5,Bg5g6,Bg6g7][%mdl 32]} Ra1 {[%emt 0:04:11]} 56. fxg5 {[%emt 0:00:17]} a2 {[%emt 0:00:24]} 57. g6 {[%emt 0:00:15] g7 is the strong threat.} Re1+ {[%emt 0:02:33]} 58. Kf4 {[%emt 0:00:11]} a1=Q {[%emt 0:00:06]} 59. Rxa1 {[%emt 0:00:04]} Rxa1 {[%emt 0:00:05] KR-KPP} 60. g7 {[%emt 0:00:16]} Ra8 {[%emt 0:00:05]} 61. Kf5 {[%emt 0:00:10]} Kc6 {[%emt 0:00:18]} 62. Ke6 {[%emt 0:01:33]} Kc5 $1 {[%emt 0:00:08]} 63. Kf7 {[%emt 0:00:43]} Ra7+ {[%emt 0:00:04]} 64. Kf8 {[%emt 0:00:30]} Ra8+ {[%emt 0:00:04]} 65. Kf7 {[%emt 0:00:03]} Ra7+ {[%emt 0:00:04]} 66. Kf8 {[%emt 0:00:21]} Ra8+ {[%emt 0:00:05]} 67. Kf7 {Weighted Error Value: White=0.34/Black=0.39} 1/2-1/2